[Event "Titled Tuesday Blitz May 9 Early 2023"]
[White "Yosha_Iglesias"]
[Black "Vidruska, Renate"]
[BlackFideId "11601841"]
[WhiteElo "2425"]
[BlackElo "1976"]
[Result "0-1"]
[Round "05"]
[TimeControl "180+2"]
[Date "2023.05.09"]
[WhiteClock "0:00:06"]
[BlackClock "0:00:29"]

1. d4 {[%clk 0:03:00]}  d5 {[%clk 0:02:51]} 2. Nf3 {[%clk 0:03:01]}  Nf6 {[%clk 0:02:32]} 3. e3 {[%clk 0:03:00]}  e6 {[%clk 0:02:33]} 4. Bd3 {[%clk 0:02:59]}  c5 {[%clk 0:02:33]} 5. c3 {[%clk 0:02:59]}  cxd4 {[%clk 0:02:33]} 6. exd4 {[%clk 0:02:59]}  b6 {[%clk 0:02:32]} 7. Nbd2 {[%clk 0:02:57]}  Nbd7 {[%clk 0:02:32]} 8. O-O {[%clk 0:02:56]}  Bb7 {[%clk 0:02:33]} 9. Re1 {[%clk 0:02:54]}  Be7 {[%clk 0:02:29]} 10. Ne5 {[%clk 0:02:54]}  Nxe5 {[%clk 0:02:27]} 11. dxe5 {[%clk 0:02:55]}  Nd7 {[%clk 0:02:26]} 12. Nf3 {[%clk 0:02:55]}  Rc8 {[%clk 0:02:24]} 13. Bf4 {[%clk 0:02:50]}  h6 {[%clk 0:02:24]} 14. Rc1 {[%clk 0:02:48]}  Nc5 {[%clk 0:02:18]} 15. Bb1 {[%clk 0:02:46]}  Ne4 {[%clk 0:02:18]} 16. Nd4 {[%clk 0:02:42]}  a6 {[%clk 0:02:14]} 17. Qh5 {[%clk 0:02:35]}  g6 {[%clk 0:01:49]} 18. Qh3 {[%clk 0:02:33]}  Bg5 {[%clk 0:01:39]} 19. Nxe6 {[%clk 0:02:21]}  fxe6 {[%clk 0:01:39]} 20. Qxe6+ {[%clk 0:02:20]}  Kf8 {[%clk 0:01:26]} 21. Bxe4 {[%clk 0:01:36]}  dxe4 {[%clk 0:01:23]} 22. Qxg6 {[%clk 0:01:31]}  Bxf4 {[%clk 0:01:10]} 23. Qf5+ {[%clk 0:01:31]}  Kg7 {[%clk 0:01:09]} 24. Qxf4 {[%clk 0:01:31]}  Qg5 {[%clk 0:01:06]} 25. Qxg5+ {[%clk 0:01:16]}  hxg5 {[%clk 0:01:07]} 26. Rcd1 {[%clk 0:01:16]}  Rhd8 {[%clk 0:01:07]} 27. Kf1 {[%clk 0:00:52]}  Kg6 {[%clk 0:01:04]} 28. g4 {[%clk 0:00:52]}  Kf7 {[%clk 0:00:56]} 29. Rd6 {[%clk 0:00:35]}  Rxd6 {[%clk 0:00:53]} 30. exd6 {[%clk 0:00:36]}  Rd8 {[%clk 0:00:53]} 31. Rd1 {[%clk 0:00:36]}  Ke6 {[%clk 0:00:51]} 32. Kg2 {[%clk 0:00:26]}  Rxd6 {[%clk 0:00:34]} 33. Rxd6+ {[%clk 0:00:26]}  Kxd6 {[%clk 0:00:35]} 34. Kg3 {[%clk 0:00:27]}  Ke5 {[%clk 0:00:35]} 35. h4 {[%clk 0:00:27]}  gxh4+ {[%clk 0:00:35]} 36. Kxh4 {[%clk 0:00:28]}  Kf4 {[%clk 0:00:34]} 37. c4 {[%clk 0:00:26]}  Bc8 {[%clk 0:00:32]} 38. g5 {[%clk 0:00:23]}  Be6 {[%clk 0:00:29]} 39. b3 {[%clk 0:00:06]}  Kf3 {[%clk 0:00:29]} 0-1


[Site "https://www.chess.com"]

[Event "Titled Tuesday Blitz May 9 Early 2023"]
[White "Titichoca Daza, Daniel"]
[Black "Kejzar, Petra"]
[WhiteFideId "3309550"]
[BlackFideId "14610213"]
[WhiteElo "2101"]
[BlackElo "2089"]
[Result "1-0"]
[Round "05"]
[TimeControl "180+2"]
[Date "2023.05.09"]
[WhiteClock "0:00:21"]
[BlackClock "0:00:46"]

1. b3 {[%clk 0:03:00]}  d5 {[%clk 0:01:57]} 2. Bb2 {[%clk 0:03:01]}  Nf6 {[%clk 0:01:55]} 3. e3 {[%clk 0:02:47]}  Bf5 {[%clk 0:01:55]} 4. Ne2 {[%clk 0:02:40]}  c6 {[%clk 0:01:55]} 5. Ng3 {[%clk 0:02:40]}  Bg6 {[%clk 0:01:55]} 6. Be2 {[%clk 0:02:35]}  e6 {[%clk 0:01:55]} 7. h4 {[%clk 0:02:35]}  h5 {[%clk 0:01:53]} 8. d3 {[%clk 0:02:33]}  Nbd7 {[%clk 0:01:52]} 9. Nd2 {[%clk 0:02:33]}  Be7 {[%clk 0:01:52]} 10. Nf3 {[%clk 0:02:30]}  Ng4 {[%clk 0:01:50]} 11. Bxg7 {[%clk 0:02:24]}  Rg8 {[%clk 0:01:50]} 12. Bb2 {[%clk 0:02:21]}  Qc7 {[%clk 0:01:50]} 13. Qd2 {[%clk 0:02:18]}  O-O-O {[%clk 0:01:50]} 14. O-O-O {[%clk 0:02:15]}  Nxf2 {[%clk 0:01:50]} 15. Qe1 {[%clk 0:01:56]}  Nxd1 {[%clk 0:01:49]} 16. Bxd1 {[%clk 0:01:54]}  Bxd3 {[%clk 0:01:43]} 17. Nxh5 {[%clk 0:01:46]}  Be4 {[%clk 0:01:43]} 18. Nf4 {[%clk 0:01:38]}  Bf6 {[%clk 0:01:39]} 19. Bxf6 {[%clk 0:01:31]}  Nxf6 {[%clk 0:01:40]} 20. h5 {[%clk 0:01:31]}  Rh8 {[%clk 0:01:36]} 21. Qh4 {[%clk 0:01:19]}  Nd7 {[%clk 0:01:33]} 22. Ng5 {[%clk 0:01:14]}  Ne5 {[%clk 0:01:21]} 23. Nxe4 {[%clk 0:00:23]}  dxe4 {[%clk 0:01:21]} 24. Qf6 {[%clk 0:00:24]}  Ng4 {[%clk 0:01:18]} 25. Bxg4 {[%clk 0:00:22]}  Qa5 {[%clk 0:01:15]} 26. Kb2 {[%clk 0:00:22]}  Rhg8 {[%clk 0:01:06]} 27. Be2 {[%clk 0:00:14]}  b5 {[%clk 0:01:06]} 28. Qxf7 {[%clk 0:00:13]}  b4 {[%clk 0:01:05]} 29. Qxe6+ {[%clk 0:00:13]}  Kb8 {[%clk 0:01:04]} 30. Qxe4 {[%clk 0:00:12]}  Rde8 {[%clk 0:00:59]} 31. Qd4 {[%clk 0:00:12]}  c5 {[%clk 0:00:57]} 32. Qd6+ {[%clk 0:00:11]}  Qc7 {[%clk 0:00:52]} 33. Qxc7+ {[%clk 0:00:11]}  Kxc7 {[%clk 0:00:53]} 34. Nd5+ {[%clk 0:00:11]}  Kd6 {[%clk 0:00:52]} 35. Nf6 {[%clk 0:00:12]}  Rxe3 {[%clk 0:00:47]} 36. Nxg8 {[%clk 0:00:12]}  Rxe2 {[%clk 0:00:48]} 37. h6 {[%clk 0:00:13]}  Rxg2 {[%clk 0:00:49]} 38. h7 {[%clk 0:00:14]}  c4 {[%clk 0:00:48]} 39. h8=Q {[%clk 0:00:13]}  c3+ {[%clk 0:00:49]} 40. Kc1 {[%clk 0:00:14]}  Rf2 {[%clk 0:00:46]} 41. Qf6+ {[%clk 0:00:13]}  Rxf6 {[%clk 0:00:45]} 42. Nxf6 {[%clk 0:00:14]}  Ke6 {[%clk 0:00:46]} 43. Ng4 {[%clk 0:00:15]}  Kd5 {[%clk 0:00:46]} 44. Nf2 {[%clk 0:00:16]}  Kc5 {[%clk 0:00:47]} 45. Nd3+ {[%clk 0:00:16]}  Kb5 {[%clk 0:00:47]} 46. Rh4 {[%clk 0:00:17]}  a5 {[%clk 0:00:47]} 47. a4+ {[%clk 0:00:17]}  bxa3 {[%clk 0:00:46]} 48. Ra4 {[%clk 0:00:17]}  Ka6 {[%clk 0:00:41]} 49. Rxa3 {[%clk 0:00:18]}  Kb6 {[%clk 0:00:42]} 50. Ra4 {[%clk 0:00:19]}  Kb5 {[%clk 0:00:42]} 51. Ne5 {[%clk 0:00:19]}  Kb6 {[%clk 0:00:41]} 52. Nc4+ {[%clk 0:00:20]}  Kb5 {[%clk 0:00:42]} 53. Rxa5+ {[%clk 0:00:20]}  Kc6 {[%clk 0:00:42]} 54. Rh5 {[%clk 0:00:21]}  Kb7 {[%clk 0:00:43]} 55. b4 {[%clk 0:00:22]}  Kc6 {[%clk 0:00:44]} 56. b5+ {[%clk 0:00:23]}  Kb7 {[%clk 0:00:44]} 57. Rh6 {[%clk 0:00:23]}  Kc7 {[%clk 0:00:44]} 58. b6+ {[%clk 0:00:24]}  Kb7 {[%clk 0:00:45]} 59. Na5+ {[%clk 0:00:24]}  Ka6 {[%clk 0:00:45]} 60. b7+ {[%clk 0:00:24]}  Ka7 {[%clk 0:00:43]} 61. Rh8 {[%clk 0:00:22]}  Kb6 {[%clk 0:00:43]} 62. b8=Q+ {[%clk 0:00:22]}  Kc5 {[%clk 0:00:44]} 63. Qe5+ {[%clk 0:00:21]}  Kb4 {[%clk 0:00:45]} 64. Rh4+ {[%clk 0:00:21]}  Ka3 {[%clk 0:00:46]} 65. Qxc3+ {[%clk 0:00:21]}  Ka2 {[%clk 0:00:46]} 66. Ra4# {[%clk 0:00:21]} 1-0


[Site "https://www.chess.com"]

[Event "Titled Tuesday Blitz May 9 Early 2023"]
[White "Brueckner, Thomas"]
[Black "Aaditya Dhingra"]
[WhiteFideId "4600452"]
[BlackFideId "25678191"]
[WhiteElo "2322"]
[BlackElo "2083"]
[Result "0-1"]
[Round "05"]
[TimeControl "180+2"]
[Date "2023.05.09"]
[WhiteClock "0:00:05"]
[BlackClock "0:00:19"]

1. Nf3 {[%clk 0:03:00]}  Nf6 {[%clk 0:01:05]} 2. g3 {[%clk 0:03:00]}  g6 {[%clk 0:01:05]} 3. Bg2 {[%clk 0:03:00]}  Bg7 {[%clk 0:01:06]} 4. O-O {[%clk 0:02:59]}  d6 {[%clk 0:01:07]} 5. d3 {[%clk 0:02:52]}  O-O {[%clk 0:01:07]} 6. e4 {[%clk 0:02:51]}  c5 {[%clk 0:01:08]} 7. Nbd2 {[%clk 0:02:49]}  Nc6 {[%clk 0:01:09]} 8. a4 {[%clk 0:02:42]}  Rb8 {[%clk 0:01:08]} 9. Nc4 {[%clk 0:02:40]}  b6 {[%clk 0:01:08]} 10. Re1 {[%clk 0:02:35]}  e5 {[%clk 0:01:07]} 11. Bg5 {[%clk 0:02:32]}  h6 {[%clk 0:01:07]} 12. Bxf6 {[%clk 0:02:32]}  Bxf6 {[%clk 0:01:08]} 13. Ne3 {[%clk 0:02:28]}  Bg7 {[%clk 0:01:08]} 14. Nd2 {[%clk 0:02:27]}  Be6 {[%clk 0:01:07]} 15. c3 {[%clk 0:02:00]}  Kh7 {[%clk 0:01:05]} 16. Ndc4 {[%clk 0:01:58]}  Rc8 {[%clk 0:01:03]} 17. Rf1 {[%clk 0:01:53]}  f5 {[%clk 0:01:03]} 18. exf5 {[%clk 0:01:52]}  gxf5 {[%clk 0:01:04]} 19. Nd5 {[%clk 0:01:43]}  Ne7 {[%clk 0:01:00]} 20. Nxe7 {[%clk 0:01:43]}  Qxe7 {[%clk 0:01:00]} 21. Ne3 {[%clk 0:01:43]}  f4 {[%clk 0:00:58]} 22. Nd5 {[%clk 0:01:42]}  Qf7 {[%clk 0:00:56]} 23. c4 {[%clk 0:01:40]}  f3 {[%clk 0:00:54]} 24. Bh1 {[%clk 0:01:38]}  Bxd5 {[%clk 0:00:52]} 25. cxd5 {[%clk 0:01:37]}  Qxd5 {[%clk 0:00:53]} 26. Re1 {[%clk 0:01:35]}  Rf7 {[%clk 0:00:51]} 27. Re3 {[%clk 0:01:22]}  Rcf8 {[%clk 0:00:50]} 28. Qc2 {[%clk 0:01:13]}  Kh8 {[%clk 0:00:49]} 29. Rae1 {[%clk 0:01:13]}  h5 {[%clk 0:00:48]} 30. Re4 {[%clk 0:01:12]}  Rf5 {[%clk 0:00:47]} 31. Rh4 {[%clk 0:01:09]}  Bf6 {[%clk 0:00:46]} 32. Rhe4 {[%clk 0:01:04]}  Kg7 {[%clk 0:00:45]} 33. R1e3 {[%clk 0:01:00]}  Bg5 {[%clk 0:00:44]} 34. Re1 {[%clk 0:01:00]}  Kh6 {[%clk 0:00:43]} 35. h4 {[%clk 0:00:59]}  Be7 {[%clk 0:00:42]} 36. Qd2+ {[%clk 0:00:58]}  Kh7 {[%clk 0:00:40]} 37. Qc2 {[%clk 0:00:58]}  Kg7 {[%clk 0:00:39]} 38. Kf1 {[%clk 0:00:57]}  Qe6 {[%clk 0:00:35]} 39. Qc3 {[%clk 0:00:53]}  Bf6 {[%clk 0:00:34]} 40. d4 {[%clk 0:00:45]}  cxd4 {[%clk 0:00:33]} 41. Qxd4 {[%clk 0:00:42]}  d5 {[%clk 0:00:30]} 42. R4e3 {[%clk 0:00:34]}  e4 {[%clk 0:00:29]} 43. Qd2 {[%clk 0:00:32]}  Be5 {[%clk 0:00:27]} 44. Rd1 {[%clk 0:00:19]}  Bf6 {[%clk 0:00:21]} 45. Rde1 {[%clk 0:00:17]}  Re5 {[%clk 0:00:21]} 46. Qc2 {[%clk 0:00:14]}  Kg8 {[%clk 0:00:20]} 47. Kg1 {[%clk 0:00:14]}  Bg7 {[%clk 0:00:20]} 48. Qb3 {[%clk 0:00:11]}  Re8 {[%clk 0:00:20]} 49. Qb5 {[%clk 0:00:09]}  d4 {[%clk 0:00:19]} 50. Qxe8+ {[%clk 0:00:05]}  Qxe8 {[%clk 0:00:19]} 0-1


[Site "https://www.chess.com"]

[Event "Titled Tuesday Blitz May 9 Early 2023"]
[White "wqws"]
[Black "Manon-og, Ramon Jr."]
[BlackFideId "5200776"]
[WhiteElo "2532"]
[BlackElo "2329"]
[Result "1-0"]
[Round "05"]
[TimeControl "180+2"]
[Date "2023.05.09"]
[WhiteClock "0:00:14"]
[BlackClock "0:00:00"]

1. e4 {[%clk 0:03:00]}  c5 {[%clk 0:02:59]} 2. Nf3 {[%clk 0:03:01]}  d6 {[%clk 0:02:57]} 3. d4 {[%clk 0:03:02]}  cxd4 {[%clk 0:02:57]} 4. Nxd4 {[%clk 0:03:01]}  Nf6 {[%clk 0:02:57]} 5. Nc3 {[%clk 0:03:02]}  a6 {[%clk 0:02:58]} 6. f3 {[%clk 0:03:03]}  e5 {[%clk 0:02:58]} 7. Nb3 {[%clk 0:03:03]}  Be7 {[%clk 0:02:59]} 8. Be3 {[%clk 0:03:04]}  O-O {[%clk 0:02:59]} 9. Qd2 {[%clk 0:03:01]}  Be6 {[%clk 0:03:00]} 10. g4 {[%clk 0:03:01]}  Nbd7 {[%clk 0:03:00]} 11. O-O-O {[%clk 0:02:59]}  b5 {[%clk 0:03:00]} 12. Kb1 {[%clk 0:02:58]}  b4 {[%clk 0:02:53]} 13. Nd5 {[%clk 0:02:58]}  Bxd5 {[%clk 0:02:54]} 14. exd5 {[%clk 0:02:59]}  Nb6 {[%clk 0:02:54]} 15. Na5 {[%clk 0:02:58]}  Nfxd5 {[%clk 0:02:51]} 16. Nc6 {[%clk 0:02:55]}  Qd7 {[%clk 0:02:51]} 17. Nxe7+ {[%clk 0:02:55]}  Qxe7 {[%clk 0:02:52]} 18. Bxb6 {[%clk 0:02:48]}  Nxb6 {[%clk 0:02:52]} 19. Qxb4 {[%clk 0:02:48]}  Qc7 {[%clk 0:02:21]} 20. Rxd6 {[%clk 0:02:28]}  Rab8 {[%clk 0:02:21]} 21. Rd1 {[%clk 0:02:04]}  Rfc8 {[%clk 0:02:14]} 22. Qe4 {[%clk 0:01:50]}  a5 {[%clk 0:01:31]} 23. Bd3 {[%clk 0:01:47]}  g6 {[%clk 0:01:31]} 24. Rhe1 {[%clk 0:01:44]}  Nd7 {[%clk 0:01:27]} 25. h4 {[%clk 0:01:37]}  Rb4 {[%clk 0:01:23]} 26. Qe3 {[%clk 0:01:24]}  Rcb8 {[%clk 0:01:22]} 27. b3 {[%clk 0:01:23]}  a4 {[%clk 0:01:23]} 28. Be4 {[%clk 0:01:00]}  axb3 {[%clk 0:01:15]} 29. cxb3 {[%clk 0:00:57]}  Nf6 {[%clk 0:00:30]} 30. Rc1 {[%clk 0:00:45]}  Qa5 {[%clk 0:00:28]} 31. g5 {[%clk 0:00:39]}  Qa3 {[%clk 0:00:18]} 32. Rc3 {[%clk 0:00:33]}  Nxe4 {[%clk 0:00:11]} 33. fxe4 {[%clk 0:00:33]}  Rd4 {[%clk 0:00:11]} 34. Rec1 {[%clk 0:00:27]}  Rbd8 {[%clk 0:00:10]} 35. Rc8 {[%clk 0:00:18]}  Rxc8 {[%clk 0:00:09]} 36. Rxc8+ {[%clk 0:00:18]}  Kg7 {[%clk 0:00:10]} 37. Qf3 {[%clk 0:00:14]}  Qd6 {[%clk 0:00:08]} 38. Qf6+ {[%clk 0:00:14]}  Qxf6 {[%clk 0:00:08]} 39. gxf6+ {[%clk 0:00:15]}  Kxf6 {[%clk 0:00:09]} 40. a4 {[%clk 0:00:15]}  Rxe4 {[%clk 0:00:08]} 41. a5 {[%clk 0:00:16]}  Rb4 {[%clk 0:00:08]} 42. Kb2 {[%clk 0:00:15]}  Rb5 {[%clk 0:00:06]} 43. Rc6+ {[%clk 0:00:15]}  Kf5 {[%clk 0:00:05]} 44. a6 {[%clk 0:00:15]}  e4 {[%clk 0:00:04]} 45. a7 {[%clk 0:00:12]}  Ra5 {[%clk 0:00:04]} 46. Rc5+ {[%clk 0:00:13]}  Rxc5 {[%clk 0:00:04]} 47. a8=Q {[%clk 0:00:14]}  e3 {[%clk 0:00:00]} 48. Qf3+ {[%clk 0:00:14]} 1-0


[Site "https://www.chess.com"]

[Event "Titled Tuesday Blitz May 9 Early 2023"]
[White "Bilan, Danila"]
[Black "De Souza, Cristiano Gomes"]
[WhiteFideId "24161918"]
[BlackFideId "2151758"]
[WhiteElo "2182"]
[BlackElo "2068"]
[Result "0-1"]
[Round "05"]
[TimeControl "180+2"]
[Date "2023.05.09"]
[WhiteClock "0:00:10"]
[BlackClock "0:00:58"]

1. d4 {[%clk 0:03:00]}  Nf6 {[%clk 0:02:59]} 2. Nf3 {[%clk 0:03:00]}  g6 {[%clk 0:02:59]} 3. Bg5 {[%clk 0:03:00]}  Bg7 {[%clk 0:02:59]} 4. c3 {[%clk 0:02:59]}  d6 {[%clk 0:02:57]} 5. Nbd2 {[%clk 0:02:59]}  h6 {[%clk 0:02:56]} 6. Bh4 {[%clk 0:02:59]}  g5 {[%clk 0:02:56]} 7. Bg3 {[%clk 0:02:58]}  Nh5 {[%clk 0:02:57]} 8. e3 {[%clk 0:02:54]}  e6 {[%clk 0:02:56]} 9. Bd3 {[%clk 0:02:44]}  Qe7 {[%clk 0:02:56]} 10. Qc2 {[%clk 0:02:24]}  Nd7 {[%clk 0:02:47]} 11. a4 {[%clk 0:02:21]}  a6 {[%clk 0:02:45]} 12. a5 {[%clk 0:02:21]}  Ndf6 {[%clk 0:02:39]} 13. e4 {[%clk 0:02:10]}  Nxg3 {[%clk 0:02:11]} 14. hxg3 {[%clk 0:02:10]}  Bd7 {[%clk 0:02:10]} 15. Nc4 {[%clk 0:02:04]}  Nxe4 {[%clk 0:01:59]} 16. Bxe4 {[%clk 0:01:59]}  d5 {[%clk 0:01:58]} 17. Nce5 {[%clk 0:01:50]}  dxe4 {[%clk 0:01:57]} 18. Qxe4 {[%clk 0:01:51]}  O-O-O {[%clk 0:01:53]} 19. Nxd7 {[%clk 0:01:48]}  Rxd7 {[%clk 0:01:50]} 20. O-O {[%clk 0:01:42]}  h5 {[%clk 0:01:42]} 21. b4 {[%clk 0:01:39]}  g4 {[%clk 0:01:37]} 22. Ne5 {[%clk 0:01:27]}  Bxe5 {[%clk 0:01:35]} 23. Qxe5 {[%clk 0:01:28]}  Rh6 {[%clk 0:01:27]} 24. b5 {[%clk 0:01:16]}  Rd5 {[%clk 0:01:26]} 25. Qe3 {[%clk 0:00:58]}  Qg5 {[%clk 0:01:21]} 26. c4 {[%clk 0:00:53]}  Qxe3 {[%clk 0:01:15]} 27. fxe3 {[%clk 0:00:54]}  Rf5 {[%clk 0:01:14]} 28. Rxf5 {[%clk 0:00:47]}  exf5 {[%clk 0:01:13]} 29. Rf1 {[%clk 0:00:48]}  h4 {[%clk 0:01:10]} 30. Rxf5 {[%clk 0:00:24]}  hxg3 {[%clk 0:01:09]} 31. Rxf7 {[%clk 0:00:24]}  axb5 {[%clk 0:01:08]} 32. cxb5 {[%clk 0:00:22]}  Rh5 {[%clk 0:01:08]} 33. a6 {[%clk 0:00:12]}  bxa6 {[%clk 0:01:01]} 34. bxa6 {[%clk 0:00:12]}  Ra5 {[%clk 0:01:01]} 35. Rg7 {[%clk 0:00:10]}  Ra1# {[%clk 0:00:58]} 0-1


[Site "https://www.chess.com"]

[Event "Titled Tuesday Blitz May 9 Early 2023"]
[White "Jovic, Stanoje"]
[Black "Szente Varga, Fruzsina"]
[WhiteFideId "905020"]
[BlackFideId "712264"]
[WhiteElo "2236"]
[BlackElo "1994"]
[Result "1-0"]
[Round "05"]
[TimeControl "180+2"]
[Date "2023.05.09"]
[WhiteClock "0:00:12"]
[BlackClock "0:00:00"]

1. c4 {[%clk 0:03:00]}  e5 {[%clk 0:02:42]} 2. g3 {[%clk 0:03:00]}  g6 {[%clk 0:02:27]} 3. d4 {[%clk 0:02:58]}  e4 {[%clk 0:02:26]} 4. Bg2 {[%clk 0:02:52]}  f5 {[%clk 0:02:26]} 5. f3 {[%clk 0:02:48]}  exf3 {[%clk 0:02:25]} 6. Nxf3 {[%clk 0:02:44]}  Bg7 {[%clk 0:02:25]} 7. Nc3 {[%clk 0:02:41]}  Nf6 {[%clk 0:02:24]} 8. e4 {[%clk 0:02:31]}  fxe4 {[%clk 0:02:13]} 9. Ng5 {[%clk 0:02:30]}  O-O {[%clk 0:01:54]} 10. O-O {[%clk 0:02:29]}  Nc6 {[%clk 0:01:48]} 11. d5 {[%clk 0:02:28]}  Ne5 {[%clk 0:01:48]} 12. Ngxe4 {[%clk 0:02:24]}  Nxe4 {[%clk 0:01:40]} 13. Nxe4 {[%clk 0:02:16]}  Nxc4 {[%clk 0:01:06]} 14. d6 {[%clk 0:02:08]}  Rxf1+ {[%clk 0:00:52]} 15. Bxf1 {[%clk 0:02:01]}  Nxd6 {[%clk 0:00:37]} 16. Nxd6 {[%clk 0:01:51]}  cxd6 {[%clk 0:00:37]} 17. Qxd6 {[%clk 0:01:51]}  Qb6+ {[%clk 0:00:27]} 18. Qxb6 {[%clk 0:01:51]}  axb6 {[%clk 0:00:27]} 19. Bc4+ {[%clk 0:01:47]}  Kf8 {[%clk 0:00:20]} 20. Be3 {[%clk 0:01:38]}  Bxb2 {[%clk 0:00:20]} 21. Rf1+ {[%clk 0:01:37]}  Ke8 {[%clk 0:00:18]} 22. Rf7 {[%clk 0:01:25]}  h5 {[%clk 0:00:16]} 23. Rh7 {[%clk 0:01:20]}  Ra5 {[%clk 0:00:14]} 24. Bf7+ {[%clk 0:01:14]}  Kf8 {[%clk 0:00:14]} 25. Bxg6 {[%clk 0:01:09]}  Bg7 {[%clk 0:00:13]} 26. Rxh5 {[%clk 0:01:02]}  Rxa2 {[%clk 0:00:13]} 27. Rf5+ {[%clk 0:00:59]}  Ke7 {[%clk 0:00:13]} 28. Rf7+ {[%clk 0:00:57]}  Ke6 {[%clk 0:00:13]} 29. Rxg7 {[%clk 0:00:57]}  d5 {[%clk 0:00:13]} 30. h4 {[%clk 0:00:48]}  Kf6 {[%clk 0:00:13]} 31. Rg8 {[%clk 0:00:40]}  Be6 {[%clk 0:00:13]} 32. Bd4+ {[%clk 0:00:34]}  Ke7 {[%clk 0:00:13]} 33. Rg7+ {[%clk 0:00:31]}  Kd6 {[%clk 0:00:13]} 34. Rxb7 {[%clk 0:00:31]}  Bh3 {[%clk 0:00:11]} 35. Rxb6+ {[%clk 0:00:29]}  Kc7 {[%clk 0:00:11]} 36. Rb2 {[%clk 0:00:28]}  Ra1+ {[%clk 0:00:11]} 37. Kh2 {[%clk 0:00:28]}  Bg4 {[%clk 0:00:12]} 38. h5 {[%clk 0:00:22]}  Rf1 {[%clk 0:00:10]} 39. h6 {[%clk 0:00:18]}  Bf3 {[%clk 0:00:10]} 40. Rg2 {[%clk 0:00:15]}  Bxg2 {[%clk 0:00:04]} 41. Kxg2 {[%clk 0:00:15]}  Rf8 {[%clk 0:00:04]} 42. h7 {[%clk 0:00:15]}  Kd6 {[%clk 0:00:02]} 43. Bf7 {[%clk 0:00:13]}  Ke7 {[%clk 0:00:00]} 44. Bg8 {[%clk 0:00:12]} 1-0


[Site "https://www.chess.com"]

[Event "Titled Tuesday Blitz May 9 Early 2023"]
[White "Jiganchine, Roman"]
[Black "Avazkhonov, Alikhon"]
[WhiteFideId "2603667"]
[BlackFideId "14208504"]
[WhiteElo "2273"]
[BlackElo "1739"]
[Result "0-1"]
[Round "05"]
[TimeControl "180+2"]
[Date "2023.05.09"]
[WhiteClock "0:00:14"]
[BlackClock "0:00:14"]

1. e4 {[%clk 0:03:00]}  c5 {[%clk 0:01:21]} 2. Nf3 {[%clk 0:03:00]}  d6 {[%clk 0:01:20]} 3. Bb5+ {[%clk 0:03:00]}  Nd7 {[%clk 0:01:19]} 4. a4 {[%clk 0:02:59]}  a6 {[%clk 0:01:20]} 5. Be2 {[%clk 0:02:59]}  Ngf6 {[%clk 0:01:20]} 6. Nc3 {[%clk 0:02:59]}  e6 {[%clk 0:01:20]} 7. d4 {[%clk 0:02:59]}  cxd4 {[%clk 0:01:20]} 8. Qxd4 {[%clk 0:02:59]}  Be7 {[%clk 0:01:20]} 9. O-O {[%clk 0:02:58]}  O-O {[%clk 0:01:21]} 10. Nd2 {[%clk 0:02:52]}  b6 {[%clk 0:01:22]} 11. Nc4 {[%clk 0:02:47]}  Qc7 {[%clk 0:01:21]} 12. Rd1 {[%clk 0:02:46]}  Rd8 {[%clk 0:01:20]} 13. h3 {[%clk 0:02:43]}  Bb7 {[%clk 0:01:12]} 14. Be3 {[%clk 0:02:28]}  Nc5 {[%clk 0:01:02]} 15. a5 {[%clk 0:02:09]}  b5 {[%clk 0:01:00]} 16. Nb6 {[%clk 0:02:07]}  Rab8 {[%clk 0:01:00]} 17. f3 {[%clk 0:01:57]}  d5 {[%clk 0:00:43]} 18. e5 {[%clk 0:01:49]}  Nfd7 {[%clk 0:00:37]} 19. Nxd7 {[%clk 0:01:27]}  Nxd7 {[%clk 0:00:38]} 20. b4 {[%clk 0:00:53]}  Rbc8 {[%clk 0:00:23]} 21. Ra3 {[%clk 0:00:44]}  Nxe5 {[%clk 0:00:24]} 22. Bf4 {[%clk 0:00:41]}  Bd6 {[%clk 0:00:19]} 23. Bxb5 {[%clk 0:00:37]}  Nxf3+ {[%clk 0:00:14]} 24. gxf3 {[%clk 0:00:35]}  Bxf4 {[%clk 0:00:15]} 25. Be2 {[%clk 0:00:32]}  Be5 {[%clk 0:00:16]} 26. Qd3 {[%clk 0:00:32]}  Bxc3 {[%clk 0:00:16]} 27. b5 {[%clk 0:00:31]}  Qc5+ {[%clk 0:00:16]} 28. Kg2 {[%clk 0:00:29]}  Qxa3 {[%clk 0:00:16]} 29. bxa6 {[%clk 0:00:29]}  Ba8 {[%clk 0:00:15]} 30. Rg1 {[%clk 0:00:25]}  Bb4 {[%clk 0:00:15]} 31. Qd4 {[%clk 0:00:20]}  Bc5 {[%clk 0:00:14]} 32. Qg4 {[%clk 0:00:19]}  Bxg1 {[%clk 0:00:14]} 33. Kxg1 {[%clk 0:00:19]}  Qe3+ {[%clk 0:00:14]} 34. Kf1 {[%clk 0:00:14]}  d4 {[%clk 0:00:14]} 0-1


[Site "https://www.chess.com"]